bitfinex-derivatives/quotes_SOLF0:USTF0_20241224
["timestamp","ask_amount","ask_price","bid_price","bid_amount"]
[1735012340834,7.7217872,189.47,189.43,2.6431]
[1735012341930,1.5586,189.52,189.44,7.7217872]
[1735012342129,1.5586,189.52,189.46,7.7217872]
[1735012343529,3.2177,189.57,189.5,7.7217872]
[1735012343825,7.7217872,189.58,189.52,7.7217872]
[1735012344226,10.3630872,189.58,189.53,2.6419]
[1735012344527,7.7217872,189.6,189.52,7.7217872]
[1735012345635,7.7217872,189.6,189.55,2.6416]
[1735012348632,7.7217872,189.6,189.52,7.7217872]
[1735012348838,7.7217872,189.6,189.56,2.6415]
[1735012353943,7.7217872,189.6,189.52,7.7217872]
[1735012354138,7.7217872,189.6,189.57,2.6413]
[1735012357340,7.7217872,189.6,189.58,2.6412]
[1735012357644,7.7217872,189.6,189.54,7.7217872]
[1735012358140,7.7217872,189.6,189.57,2.6412]
[1735012359044,7.7217872,189.58,189.53,1.5231]
[1735012359242,7.7217872,189.56,189.48,9.3278872]
[1735012359448,7.7217872,189.54,189.49,2.6423]
[1735012359748,7.7217872,189.54,189.48,9.3278872]
[1735012359947,7.7217872,189.54,189.5,2.6422]
[1735012361448,10.3634872,189.54,189.5,2.6422]
[1735012363845,7.7217872,189.54,189.5,2.6422]
[1735012364942,7.7217872,189.57,189.5,7.7217872]
[1735012365253,7.7217872,189.61,189.54,7.7217872]
[1735012366252,7.7217872,189.59,189.52,7.7217872]
[1735012367450,7.7217872,189.59,189.54,2.6416]
[1735012370350,7.7217872,189.59,189.54,2.6417]
[1735012371553,10.3630872,189.57,189.52,2.642]
[1735012373751,7.7217872,189.53,189.5,2.6422]
[1735012379852,7.7217872,189.53,189.49,2.6424]
[1735012381159,10.3636872,189.53,189.49,2.6424]
[1735012381458,7.7217872,189.5,189.47,2.6426]
[1735012381850,7.7217872,189.5,189.44,7.7217872]
[1735012382054,7.7217872,189.54,189.46,7.7217872]
[1735012382957,11.8775872,189.56,189.48,7.7217872]
[1735012383451,11.8775872,189.56,189.52,2.642]
[1735012383653,1.5143,189.56,189.52,2.642]
[1735012383956,7.7217872,189.6,189.52,7.7217872]
[1735012384555,1.6159,189.62,189.52,7.7217872]
[1735012384753,7.7217872,189.6,189.52,7.7217872]
[1735012384953,7.7217872,189.6,189.55,2.6415]
[1735012385163,7.7217872,189.6,189.54,7.7217872]
[1735012386455,7.7217872,189.6,189.56,2.6414]
[1735012388957,10.3626872,189.6,189.54,2.6416]
[1735012389163,7.7217872,189.58,189.54,2.6416]
[1735012395765,2.6415,189.56,189.51,2.6421]
[1735012396068,7.7217872,189.56,189.47,7.7217872]
[1735012396369,7.7217872,189.54,189.47,7.7217872]
[1735012396971,1.5477,189.57,189.49,7.7217872]
[1735012396972,7.7217872,189.56,189.49,7.7217872]
[1735012397975,7.7217872,189.56,189.51,2.6421]
[1735012399583,10.3632872,189.56,189.51,2.6421]
[1735012404978,6.0612,189.59,189.54,2.6417]
[1735012405280,7.7217872,189.6,189.53,7.7217872]
[1735012405475,7.7217872,189.6,189.56,2.6413]
[1735012406284,7.7217872,189.6,189.53,2.6418]
[1735012406483,7.7217872,189.58,189.49,7.7217872]
[1735012406784,2.6414,189.57,189.49,7.7217872]
[1735012407089,2.6414,189.57,189.51,7.7217872]
[1735012408586,2.6414,189.57,189.49,7.7217872]
[1735012409282,2.6414,189.57,189.52,2.642]
[1735012413484,7.7217872,189.6,189.51,7.7217872]
[1735012413789,7.7217872,189.6,189.53,7.7217872]
[1735012414492,7.7217872,189.6,189.57,2.6413]
[1735012415793,7.7217872,189.6,189.55,2.6415]
[1735012417090,7.7217872,189.6,189.56,2.6414]
[1735012424100,2.6409,189.61,189.52,7.7217872]
[1735012424301,2.6409,189.61,189.57,2.6413]
[1735012424695,1.7178596,189.69,189.56,7.7217872]
[1735012424901,7.7217872,189.65,189.6,2.6409]
[1735012426603,7.7217872,189.63,189.6,2.6409]
[1735012433204,7.7217872,189.63,189.56,7.7217872]
[1735012433205,7.7217872,189.63,189.58,2.6412]
[1735012433406,7.7217872,189.61,189.53,7.7217872]
[1735012434402,3.42,189.68,189.55,7.7217872]
[1735012434699,7.7217872,189.66,189.59,7.7217872]
[1735012435508,7.7217872,189.66,189.62,2.6406]
[1735012436610,10.3617872,189.67,189.62,2.6406]
[1735012436909,1.7178596,189.69,189.64,2.6403]
[1735012437099,9.4396468,189.69,189.64,2.6403]
[1735012437810,7.7217872,189.69,189.65,2.6402]
[1735012438603,7.7217872,189.69,189.6,3.206]
[1735012438909,10.3616872,189.67,189.6,3.206]
[1735012439104,7.7217872,189.65,189.58,3.42]
[1735012439699,7.7217872,189.65,189.59,2.641]
[1735012439700,10.3620872,189.65,189.59,2.641]
[1735012440209,7.7217872,189.65,189.59,2.641]
[1735012440409,7.7217872,189.65,189.57,10.3629872]
[1735012440610,7.7217872,189.65,189.57,7.7217872]
[1735012441210,7.7217872,189.65,189.57,2.6413]
[1735012441412,7.7217872,189.63,189.57,2.6413]
[1735012442607,1.5628,189.67,189.58,2.6411]
[1735012442810,1.5628,189.67,189.58,7.7217872]
[1735012443014,7.7217872,189.64,189.58,7.7217872]
[1735012443314,10.3621872,189.64,189.58,10.3628872]
[1735012443505,2.6404,189.64,189.58,7.7217872]
[1735012443711,7.7217872,189.66,189.58,7.7217872]
[1735012445411,2.6402,189.65,189.6,2.6408]
[1735012445613,7.7217872,189.66,189.6,2.6408]
[1735012446317,10.3618872,189.66,189.61,2.6407]
[1735012448117,7.7217872,189.66,189.58,7.7217872]
[1735012448419,7.7217872,189.62,189.55,3.1324]
[1735012448717,2.6401,189.67,189.61,2.6407]
[1735012448910,7.7217872,189.66,189.61,2.6407]
[1735012449109,1.5088,189.7,189.6,7.7217872]
[1735012449314,7.7217872,189.68,189.6,7.7217872]
[1735012450015,2.6398,189.68,189.64,2.6403]
[1735012450216,7.7217872,189.68,189.64,2.6403]
[1735012451415,10.3615872,189.68,189.63,2.6405]
[1735012452618,10.3615872,189.68,189.61,2.6406]
[1735012452619,2.64,189.67,189.61,2.6406]
[1735012452818,7.7217872,189.66,189.61,2.6406]
[1735012453319,7.7217872,189.66,189.62,2.6405]
[1735012456319,2.6397,189.69,189.63,2.6405]
[1735012456517,7.7217872,189.68,189.63,2.6405]
[1735012457324,10.3615872,189.68,189.63,2.6405]
[1735012460625,7.7217872,189.69,189.65,2.6402]
[1735012461821,10.3614872,189.69,189.65,2.6402]
[1735012462821,1.5088,189.7,189.62,7.7217872]
[1735012463020,7.7217872,189.72,189.64,7.7217872]
[1735012463324,7.7217872,189.72,189.66,7.7217872]
[1735012463717,7.7217872,189.72,189.68,2.6397]
[1735012464319,4.202,189.73,189.68,2.6397]
[1735012464623,11.9237872,189.73,189.68,2.6397]
[1735012464820,1.5076,189.74,189.68,2.6397]
[1735012465021,10.3607872,189.74,189.68,2.6397]
[1735012466020,1.6209,189.76,189.66,7.7217872]
[1735012466226,10.3605872,189.75,189.7,2.6394]
[1735012466627,7.7217872,189.75,189.68,7.7217872]
[1735012466831,2.639,189.74,189.68,10.3614872]
[1735012468023,4.2596,189.76,189.68,7.7217872]
[1735012468227,1.6209,189.76,189.7,7.7217872]
[1735012468524,9.43886501,189.77,189.7,7.7217872]
[1735012469228,12.07746501,189.77,189.66,3.34]
[1735012469427,12.07746501,189.77,189.69,7.7217872]
[1735012470428,12.07746501,189.77,189.71,2.6393]
[1735012471321,2.6388,189.76,189.71,2.6393]
[1735012474124,1.5855,189.85,189.69,7.7217872]
[1735012474323,7.7217872,189.77,189.69,7.7217872]
[1735012475422,2.6387,189.76,189.71,2.6394]
[1735012476027,2.6388,189.75,189.71,2.6394]
[1735012476330,7.7217872,189.75,189.67,10.3616872]
[1735012477432,2.6392,189.72,189.67,10.3616872]
[1735012478533,2.6394,189.71,189.66,2.6401]
[1735012478730,7.7217872,189.73,189.66,2.6401]
[1735012479834,2.6394,189.71,189.66,2.6401]
[1735012480726,2.6394,189.71,189.67,7.7217872]
[1735012480928,7.7217872,189.71,189.66,2.6401]
[1735012481335,7.7217872,189.73,189.66,2.6401]
[1735012481635,2.6394,189.72,189.66,10.3618872]
[1735012482333,2.6394,189.71,189.66,10.3618872]
[1735012482530,7.7217872,189.69,189.62,10.8584872]
[1735012482835,4.9171,189.74,189.62,14.1184872]
[1735012483033,7.7217872,189.7,189.64,2.6402]
[1735012483537,10.3613872,189.7,189.64,2.6402]
[1735012487335,2.6396,189.7,189.64,2.6402]
[1735012487639,2.6396,189.7,189.65,2.6402]
[1735012487940,7.7217872,189.69,189.62,10.9817872]
[1735012488139,7.7217872,189.67,189.56,4.6339]
[1735012488345,7.7217872,189.67,189.59,7.7217872]
[1735012489640,2.6403,189.65,189.6,2.6408]
[1735012490032,7.7217872,189.67,189.59,7.7217872]
[1735012490237,2.6404,189.64,189.59,10.3627872]
[1735012491145,7.7217872,189.63,189.55,7.7217872]
[1735012491546,7.7217872,189.61,189.54,89.9668942]
[1735012491849,2.6412,189.58,189.54,86.7068942]
[1735012493445,10.3631872,189.57,189.54,86.7068942]
[1735012495443,2.6408,189.61,189.55,2.6415]
[1735012495640,7.7217872,189.61,189.55,7.7217872]
[1735012496848,4.9028,189.66,189.55,7.7217872]
[1735012497049,7.7217872,189.61,189.55,7.7217872]
[1735012497348,7.7217872,189.61,189.54,86.7068942]
[1735012497746,7.7217872,189.61,189.54,94.4286814]
[1735012498257,7.7217872,189.61,189.57,2.6413]
[1735012498553,7.7217872,189.64,189.56,7.7217872]
[1735012498849,7.7217872,189.64,189.56,10.9817872]
[1735012499441,7.7217872,189.64,189.59,2.6409]
[1735012501651,10.3620872,189.65,189.6,2.6409]
[1735012502246,7.7217872,189.63,189.6,2.6409]
[1735012503549,7.7217872,189.63,189.58,2.6411]
[1735012503954,7.7217872,189.63,189.56,7.7217872]
[1735012504154,7.7217872,189.63,189.55,3.28]
[1735012504155,1.6428,189.66,189.58,7.7217872]
[1735012504356,7.7217872,189.69,189.6,7.7217872]
[1735012504554,7.7217872,189.69,189.6,11.0017872]
[1735012505245,4.6828,189.74,189.66,7.7217872]
[1735012505447,0.79563875,189.73,189.66,7.7217872]
[1735012505652,1.5084,189.74,189.66,7.7217872]
[1735012506359,7.7217872,189.73,189.66,7.7217872]
[1735012506554,7.7217872,189.73,189.7,2.6395]
[1735012507861,7.7217872,189.78,189.7,7.7217872]
[1735012509165,7.7217872,189.74,189.65,3.28]
[1735012509357,7.7217872,189.72,189.65,11.0017872]
[1735012509865,7.7217872,189.72,189.69,2.6396]
[1735012511059,5.9186,189.77,189.71,2.6393]
[1735012511261,7.7217872,189.74,189.71,2.6393]
[1735012513862,9.3734872,189.81,189.73,7.7217872]
[1735012514268,9.3734872,189.81,189.75,7.7217872]
[1735012515462,9.3734872,189.81,189.79,2.6383]
[1735012515769,2.6374,189.85,189.79,2.6383]
[1735012516065,7.7217872,189.83,189.8,2.638]
[1735012518060,7.7217872,189.83,189.77,7.7217872]
[1735012519463,7.7217872,189.83,189.79,2.6382]
[1735012520271,10.3594872,189.83,189.77,2.6385]
[1735012520570,7.7217872,189.83,189.75,7.7217872]
[1735012521471,2.6379,189.82,189.76,2.6386]
[1735012522571,2.6379,189.82,189.77,2.6384]
[1735012522768,7.7217872,189.83,189.75,7.7217872]
[1735012523567,7.7217872,189.83,189.78,2.6384]
[1735012524170,10.3594872,189.83,189.78,2.6384]
[1735012524470,7.7217872,189.81,189.76,2.6385]
[1735012524673,7.7217872,189.81,189.74,7.7217872]
[1735012525468,7.7217872,189.81,189.77,2.6385]
[1735012533669,7.7217872,189.79,189.75,2.6387]
[1735012533876,7.7217872,189.77,189.71,3.1753]
[1735012534475,10.3604872,189.77,189.72,2.6392]
[1735012539682,2.6387,189.77,189.72,2.6392]
[1735012539982,7.7217872,189.76,189.72,2.6392]
[1735012548387,2.6387,189.77,189.72,2.6392]
[1735012548585,7.7217872,189.76,189.72,2.6392]
[1735012552288,10.3604872,189.76,189.7,2.6394]
[1735012553387,7.7217872,189.76,189.7,2.6394]
[1735012553589,2.6389,189.75,189.7,2.6394]
[1735012555687,3.28,189.8,189.69,7.7217872]
[1735012555887,10.3603872,189.77,189.71,10.3611872]
[1735012559688,7.7217872,189.77,189.69,7.7217872]
[1735012559889,7.7217872,189.75,189.69,7.7217872]
[1735012560194,7.7217872,189.75,189.68,3.28]
[1735012560990,7.7217872,189.73,189.67,66.41902298]
[1735012561387,2.6387,189.77,189.68,2.6398]
[1735012561592,7.7217872,189.73,189.68,2.6398]
[1735012561896,10.3612872,189.71,189.66,2.6401]
[1735012563193,7.7217872,189.71,189.67,2.6398]
[1735012563387,1.5711,189.74,189.68,7.7217872]
[1735012563586,1.5711,189.74,189.62,3.28]
[1735012563587,1.5711,189.74,189.7,7.7217872]
[1735012564492,1.5711,189.74,189.7,10.3612872]
[1735012565802,2.6384,189.79,189.73,2.639]
[1735012566106,7.7217872,189.77,189.73,2.639]
[1735012569502,2.639,189.74,189.69,2.6397]
[1735012569800,7.7217872,189.73,189.69,2.6397]
[1735012570699,2.6388,189.76,189.7,2.6394]
[1735012570900,7.7217872,189.75,189.7,2.6394]
[1735012571202,7.7217872,189.75,189.7,2.6395]
[1735012573701,10.3606872,189.75,189.7,2.6395]
[1735012577605,2.639,189.74,189.69,2.6396]
[1735012580097,10.3609872,189.73,189.67,2.6398]
[1735012581006,7.7217872,189.71,189.67,2.6398]
[1735012581506,10.3611872,189.71,189.66,2.6401]
[1735012582202,7.7217872,189.67,189.61,57.49693708]
[1735012582409,7.7217872,189.67,189.6,65.21872428]
[1735012582809,7.7217872,189.65,189.6,57.49693708]
[1735012583003,7.7217872,189.65,189.58,7.7217872]
[1735012583403,1.6542,189.73,189.6,7.7217872]
[1735012583611,7.7217872,189.71,189.65,7.7217872]
[1735012584303,2.6394,189.71,189.65,10.3618872]
[1735012584507,12.6359872,189.73,189.65,7.7217872]
[1735012585300,15.2751872,189.73,189.65,7.7217872]
[1735012585498,15.2751872,189.73,189.62,3.0828]
[1735012585499,15.2751872,189.73,189.67,7.7217872]
[1735012585904,4.1977,189.74,189.69,7.7217872]
[1735012586105,6.7321185,189.81,189.69,7.7217872]
[1735012586106,7.7217872,189.77,189.69,7.7217872]
[1735012587505,2.6388,189.76,189.7,2.6395]
[1735012591413,10.3602872,189.78,189.71,7.7217872]
[1735012592410,10.3599872,189.8,189.75,2.6388]
[1735012593212,1.7165516,189.82,189.73,7.7217872]
[1735012593417,1.7165516,189.82,189.79,2.6383]
[1735012594215,1.7165516,189.82,189.77,10.9817872]
[1735012594409,7.7217872,189.86,189.79,7.7217872]
[1735012594810,3.26,189.91,189.79,7.7217872]
[1735012595017,7.7217872,189.87,189.84,2.6375]
[1735012596717,7.7217872,189.87,189.82,2.6377]
[1735012597112,7.7217872,189.87,189.81,7.7217872]
[1735012597511,7.7217872,189.87,189.84,2.6375]
[1735012599617,7.7217872,189.9,189.86,2.6373]
[1735012599819,7.7217872,189.9,189.83,7.7217872]
[1735012600716,7.7217872,189.9,189.87,2.6371]
[1735012600912,7.7217872,189.92,189.87,2.6371]
[1735012601119,7.7217872,189.93,189.87,7.7217872]
[1735012601320,7.7217872,189.93,189.88,2.6369]
[1735012604508,2.6367,189.9,189.84,2.6376]
[1735012604714,7.7217872,189.89,189.83,3.26]
[1735012605918,10.3587872,189.89,189.83,2.6377]
[1735012606121,7.7217872,189.89,189.81,7.7217872]
[1735012606719,2.6371,189.88,189.81,10.3596872]
[1735012607115,4.7545,189.92,189.81,7.7217872]
[1735012607319,10.3585872,189.9,189.84,2.6374]
[1735012609214,6.66883047,190.04,189.83,7.7217872]
[1735012609423,3.21,190.03,189.9,7.7217872]
[1735012609623,8.51619178,189.98,189.9,3.26]
[1735012609822,2.636,189.95,189.87,2.6371]
[1735012610024,2.636,189.95,189.89,7.7217872]
[1735012610221,7.7217872,189.96,189.89,7.7217872]
[1735012611423,2.636,189.95,189.89,10.3586872]
[1735012612324,7.7217872,189.96,189.9,2.6367]
[1735012612624,7.7217872,189.96,189.89,7.7217872]
[1735012612827,7.7217872,189.94,189.87,7.7217872]
[1735012613719,7.7217872,189.94,189.88,2.6369]
[1735012613720,2.6363,189.93,189.88,2.6369]
[1735012613916,5.45901264,189.99,189.85,10.9817872]
[1735012613917,7.7217872,189.92,189.85,10.9817872]
[1735012614624,5.45901264,189.99,189.87,7.7217872]
[1735012614829,7.7217872,189.94,189.87,7.7217872]
[1735012615428,10.3579872,189.94,189.87,10.3588872]
[1735012616825,10.3582872,189.92,189.87,2.6371]
[1735012617426,10.3580872,189.94,189.87,10.3588872]
[1735012617625,7.7217872,189.94,189.87,10.3588872]
[1735012617929,10.3579872,189.94,189.88,2.637]
[1735012618430,7.7217872,189.94,189.87,7.7217872]
[1735012618631,7.7217872,189.94,189.89,2.6368]
[1735012620835,10.3579872,189.94,189.89,2.6368]
[1735012624840,7.7217872,189.92,189.89,2.6368]
[1735012625546,10.3579872,189.94,189.89,2.6368]
[1735012626738,4.83461264,189.99,189.94,2.6362]
[1735012626948,7.7217872,189.97,189.94,2.6362]
[1735012627144,2.19901264,189.99,189.97,2.6357]
[1735012627343,2.19901264,189.99,189.96,7.7217872]
[1735012627545,2.19901264,189.99,189.91,3.1088]
[1735012627747,2.19901264,189.99,189.96,7.7217872]
[1735012628147,2.19901264,189.99,189.97,2.6358]
[1735012629544,2.19901264,189.99,189.97,2.6357]
[1735012629951,2.19901264,189.99,189.95,3.26]
[1735012631452,2.19901264,189.99,189.96,2.6359]
[1735012636759,2.19901264,189.99,189.97,2.6357]
[1735012638654,2.19901264,189.99,189.98,2.6356]
[1735012639455,15.41757216,190.12,189.98,10.9817872]
[1735012639654,0.79400761,190.11,189.98,3.26]
[1735012639855,7.7217872,190.06,189.98,3.26]
[1735012640056,7.7217872,190.06,189.98,10.9817872]
[1735012641455,2.6347,190.05,189.99,2.6354]
[1735012641951,2.6347,190.05,189.98,10.9817872]
[1735012642358,7.7217872,190.06,190.01,2.6352]
[1735012642554,7.7217872,190.08,190.0,7.7217872]
[1735012642855,10.3561872,190.08,190.02,2.635]
[1735012643057,7.7217872,190.08,190.0,7.7217872]
[1735012643660,7.7217872,190.06,189.99,2.6355]
[1735012644556,7.7217872,190.06,189.98,13.6173872]
[1735012644557,2.6349,190.04,189.98,13.6173872]
[1735012644762,7.7217872,190.04,189.96,7.7217872]
[1735012644964,2.6351,190.02,189.97,2.6357]
[1735012645764,2.6352,190.01,189.95,5.8959]
[1735012645958,7.7217872,190.02,189.95,13.6176872]
[1735012646157,7.7217872,190.02,189.95,10.9817872]
[1735012646954,2.6352,190.01,189.96,2.6359]
[1735012647464,1.5354,190.05,189.97,2.6357]
[1735012647665,7.7217872,190.02,189.97,2.6357]
[1735012648169,1.5354,190.05,189.97,2.6357]
[1735012648365,7.7217872,190.03,189.97,2.6357]
[1735012648562,2.6351,190.02,189.97,2.6357]
[1735012648863,7.7217872,190.03,189.95,10.3576872]
[1735012649367,2.6352,190.01,189.95,7.7217872]
[1735012650562,2.6352,190.01,189.96,2.6359]
[1735012652162,2.6359,189.97,189.92,2.6364]
[1735012652369,7.7217872,189.99,189.89,3.26]
[1735012652571,7.7217872,189.97,189.91,7.7217872]
[1735012652967,2.6359,189.96,189.91,10.3583872]
[1735012653963,7.7217872,189.97,189.91,7.7217872]
[1735012654166,2.6361,189.95,189.91,7.7217872]
[1735012654470,2.6361,189.95,189.9,2.6367]
[1735012654671,10.3578872,189.95,189.9,2.6367]
[1735012654874,7.7217872,189.95,189.89,7.7217872]
[1735012655171,7.7217872,189.95,189.87,10.9817872]
[1735012655372,7.7217872,189.93,189.87,10.9817872]
[1735012655674,10.3580872,189.93,189.87,13.6187872]
[1735012657568,10.3580872,189.93,189.87,10.3587872]
[1735012658677,2.6365,189.92,189.87,10.3587872]
[1735012659569,7.7217872,189.95,189.87,7.7217872]
[1735012659776,2.6361,189.95,189.89,7.7217872]
[1735012661673,2.6361,189.95,189.9,2.6367]
[1735012663482,2.6361,189.95,189.89,7.7217872]
[1735012664780,10.3580872,189.94,189.89,2.6369]
[1735012667681,2.6363,189.93,189.87,10.3587872]
[1735012667881,2.6363,189.93,189.87,2.637]
[1735012668880,2.6366,189.92,189.87,2.637]
[1735012669984,2.6366,189.91,189.86,13.6190872]
[1735012673281,2.6364,189.93,189.88,10.3586872]
[1735012673481,1.5058,189.97,189.92,7.7217872]
[1735012673787,1.5167,189.98,189.92,7.7217872]
[1735012674583,2.6359,189.97,189.92,7.7217872]
[1735012678189,2.6359,189.97,189.91,2.6365]
[1735012679589,10.3576872,189.97,189.91,2.6365]
[1735012682193,4.1523,189.98,189.93,2.6362]
[1735012682383,1.5167,189.98,189.93,2.6362]
[1735012683791,1.5167,189.98,189.91,3.26]
[1735012683993,1.5167,189.98,189.94,2.6362]
[1735012684992,10.3572872,189.99,189.94,2.6362]
[1735012684993,2.6355,189.99,189.94,2.6362]
[1735012685192,10.3572872,189.99,189.94,2.6362]
[1735012685789,4.35019308,190.01,189.95,2.6359]
[1735012686094,7.7217872,189.99,189.95,2.6359]
[1735012686291,7.7217872,189.99,189.92,7.7217872]
[1735012686690,10.3572872,189.99,189.93,2.6362]
[1735012687095,10.3572872,189.99,189.92,7.7217872]
[1735012687689,7.7217872,190.01,189.94,7.7217872]
[1735012688285,7.7217872,190.01,189.97,2.6356]
[1735012689104,2.6351,190.02,189.97,2.6356]
[1735012690297,7.7217872,190.03,189.96,7.7217872]
[1735012690799,3.1314,190.1,189.99,2.6354]
[1735012690800,10.3564872,190.05,189.99,2.6354]
[1735012690994,7.7217872,190.05,189.99,2.6354]
[1735012692098,1.6507,190.09,189.99,2.6354]
[1735012692297,7.7217872,190.04,189.99,2.6354]
[1735012692498,10.3565872,190.04,189.99,2.6354]
[1735012693003,10.3569872,190.02,189.96,13.5976872]
[1735012694204,10.3569872,190.02,189.96,10.9617872]
[1735012694501,10.3569872,190.02,189.97,2.6358]
[1735012694902,2.6352,190.01,189.96,2.6359]
[1735012701616,2.6354,190.0,189.94,13.5978872]
[1735012702214,2.6354,190.0,189.94,5.8761]
[1735012702416,2.6354,190.0,189.94,13.5978872]
[1735012702710,2.6354,190.0,189.94,10.9617872]
[1735012702916,2.6354,190.0,189.95,2.636]
[1735012704118,7.7217872,190.02,189.96,7.7217872]
[1735012704119,2.6352,190.02,189.96,7.7217872]
[1735012704322,10.40586873,190.09,189.98,7.7217872]
[1735012704619,7.7217872,190.05,189.98,7.7217872]
[1735012705010,1.6507,190.09,190.0,2.6353]
[1735012705214,7.7217872,190.06,189.99,3.24]
[1735012705414,1.6507,190.09,189.99,3.24]
[1735012705618,7.7217872,190.06,189.99,3.24]
[1735012706420,2.6347,190.05,189.99,5.8754]
[1735012709921,7.7217872,190.06,189.99,3.24]
[1735012710223,2.635,190.03,189.99,3.24]
[1735012710417,7.7217872,190.04,189.99,3.24]
[1735012710622,7.7217872,190.04,189.99,5.8753]
[1735012710818,7.7217872,190.04,189.99,3.24]
[1735012711321,2.6347,190.05,189.99,3.24]
[1735012712520,2.6347,190.05,190.0,2.6353]
[1735012713024,7.7217872,190.06,189.99,3.24]
[1735012713322,1.6507,190.09,190.0,7.7217872]
[1735012713516,61.65762434,190.16,190.02,7.7217872]
[1735012713715,10.3557872,190.1,189.99,3.24]
[1735012713917,7.7217872,190.08,190.0,10.9617872]
[1735012714223,7.7217872,190.06,190.0,7.7217872]
[1735012715526,7.7217872,190.06,190.01,2.6352]
[1735012715730,7.7217872,190.04,189.98,10.9617872]
[1735012716124,7.7217872,190.04,189.99,2.6355]
[1735012718125,10.3565872,190.05,189.99,2.6355]
[1735012718724,2.6348,190.05,189.99,2.6355]
[1735012718924,10.3565872,190.05,189.99,2.6355]
[1735012719326,2.6348,190.05,189.99,2.6355]
[1735012719622,10.3565872,190.05,189.99,2.6355]
[1735012722529,2.6348,190.05,189.99,2.6355]
[1735012722829,10.3565872,190.05,189.99,2.6355]
[1735012723229,2.6348,190.05,189.99,2.6355]
[1735012723427,10.3565872,190.05,189.99,2.6355]
[1735012723824,4.6631,190.08,190.0,7.7217872]
[1735012724027,10.3561872,190.07,190.02,2.635]
[1735012725728,2.6343,190.08,190.03,2.6349]
[1735012725928,10.3560872,190.08,190.03,2.6349]
[1735012726329,2.6341,190.09,190.04,2.6347]
[1735012726631,7.7217872,190.08,190.04,2.6347]
[1735012729434,7.7217872,190.08,190.02,7.7217872]
[1735012729634,10.3560872,190.08,190.02,2.6349]
[1735012730031,7.7217872,190.07,190.02,2.6349]
[1735012732932,2.6341,190.1,190.02,7.7217872]
[1735012733128,8.51555283,190.09,190.02,7.7217872]
[1735012733328,7.7217872,190.09,190.02,7.7217872]
[1735012734238,10.3559872,190.09,190.04,2.6348]
[1735012735135,7.7217872,190.07,190.02,2.6349]
[1735012735339,7.7217872,190.07,190.01,7.7217872]
[1735012736228,9.95492254,190.14,190.05,7.7217872]
[1735012736229,6.71492254,190.14,190.05,7.7217872]
[1735012736438,67.18350547,190.15,190.13,7.7217872]
[1735012736630,58.41762434,190.15,190.13,10.9617872]
[1735012737633,58.41762434,190.15,190.02,4.04290125]
[1735012737841,58.41762434,190.15,190.09,7.7217872]
[1735012738038,7.7217872,190.17,190.09,10.9617872]
[1735012738237,9.2922872,190.17,190.09,10.9617872]
[1735012739438,2.6334,190.15,190.09,10.9617872]
[1735012739638,7.7217872,190.15,190.09,10.9617872]
[1735012739838,1.5705,190.17,190.09,10.9617872]
[1735012740041,7.7217872,190.16,190.09,10.9617872]
[1735012741445,2.6334,190.15,190.09,13.5958872]
[1735012741647,7.7217872,190.16,190.09,10.9617872]
[1735012742545,7.7217872,190.12,190.06,7.7217872]
[1735012743436,10.3555872,190.12,190.06,10.3561872]
[1735012743838,2.6338,190.12,190.06,10.3561872]
[1735012744546,2.6336,190.13,190.08,10.3559872]
[1735012744751,7.7217872,190.14,190.08,10.3559872]
[1735012745047,1.5453,190.15,190.08,10.3559872]
[1735012745239,9.2670872,190.15,190.08,10.3559872]
[1735012746450,2.6334,190.14,190.08,10.3559872]
[1735012749854,9.2670872,190.15,190.08,7.7217872]
[1735012750053,10.3553872,190.13,190.08,7.7217872]
[1735012754055,2.6338,190.12,190.07,2.6344]
[1735012755653,7.7217872,190.13,190.06,7.7217872]
[1735012755858,2.6339,190.11,190.06,7.7217872]
[1735012757164,10.3556872,190.11,190.05,10.3563872]
[1735012758164,10.3556872,190.11,190.05,2.6346]
[1735012758362,10.3556872,190.11,190.05,10.3563872]
[1735012760667,2.634,190.1,190.05,10.3563872]
[1735012765368,2.6338,190.12,190.07,7.7217872]
[1735012767464,2.6336,190.13,190.09,7.7217872]
[1735012769072,1.5453,190.15,190.09,7.7217872]
[1735012769267,1.5453,190.15,190.09,10.3557872]
[1735012770671,2.6334,190.14,190.09,10.3557872]
[1735012772069,2.6334,190.14,190.09,7.7217872]
[1735012773072,1.5453,190.15,190.08,2.6342]